[Event "MČR v bleskovém šachu družstev 2019"]
[Site "Teplice, Czech Republic"]
[Date "2019.09.14"]
[Round "2.19"]
[White "Pechanek, Krystof"]
[Black "Kopta, Pavel"]
[Result "0-1"]
[TimeControl "3 mim. + 2 s"]
[BlackTitle "FM"]
[WhiteFideId "23719869"]
[BlackFideId "309109"]
[WhiteElo "1848"]
[BlackElo "2234"]

1. d4 {[%clk 00:03:03]} {[%emt 00:24:10]} Nf6 {[%clk 00:03:01]} {[%emt
00:00:03]} 2. Bf4 {[%clk 00:03:04]} {[%emt 00:00:02]} b6 {[%clk 00:02:59]}
{[%emt 00:00:05]} 3. e3 {[%clk 00:03:05]} Bb7 {[%clk 00:03:00]} {[%emt
00:00:01]} 4. c3 {[%clk 00:03:05]} e6 {[%clk 00:02:59]} {[%emt 00:00:03]} 5.
Nf3 {[%clk 00:03:06]} {[%emt 00:00:01]} Be7 {[%clk 00:03:00]} {[%emt 00:00:01]}
6. Nbd2 {[%clk 00:03:06]} {[%emt 00:00:02]} O-O {[%clk 00:03:00]} {[%emt
00:00:02]} 7. Be2 {[%clk 00:03:06]} {[%emt 00:00:02]} d6 {[%clk 00:02:54]}
{[%emt 00:00:08]} 8. O-O {[%clk 00:03:04]} {[%emt 00:00:03]} Nh5 {[%clk
00:02:51]} {[%emt 00:00:05]} 9. Bg3 {[%clk 00:03:02]} {[%emt 00:00:05]} Nxg3
{[%clk 00:02:52]} {[%emt 00:00:02]} 10. hxg3 {[%clk 00:03:00]} {[%emt
00:00:03]} Nd7 {[%clk 00:02:52]} {[%emt 00:00:02]} 11. Qc2 {[%clk 00:02:44]}
{[%emt 00:00:18]} f5 {[%clk 00:02:50]} {[%emt 00:00:05]} 12. Qb3 {[%clk
00:02:19]} {[%emt 00:00:26]} d5 {[%clk 00:02:42]} {[%emt 00:00:10]} 13. Bb5
{[%clk 00:02:19]} {[%emt 00:00:02]} c6 {[%clk 00:02:42]} {[%emt 00:00:03]} 14.
Be2 {[%clk 00:02:14]} {[%emt 00:00:06]} Bd6 {[%clk 00:02:33]} {[%emt 00:00:11]}
15. c4 {[%clk 00:02:11]} {[%emt 00:00:05]} Qe7 {[%clk 00:02:30]} {[%emt
00:00:06]} 16. cxd5 {[%clk 00:02:06]} {[%emt 00:00:06]} exd5 {[%clk 00:02:27]}
{[%emt 00:00:04]} 17. Rac1 {[%clk 00:01:57]} {[%emt 00:00:11]} Kh8 {[%clk
00:02:27]} {[%emt 00:00:02]} 18. Bd3 {[%clk 00:01:52]} {[%emt 00:00:07]} Rae8
{[%clk 00:02:21]} {[%emt 00:00:09]} 19. Qc2 {[%clk 00:01:50]} {[%emt 00:00:03]}
Qf6 {[%clk 00:02:18]} {[%emt 00:00:06]} 20. Nh4 {[%clk 00:01:46]} {[%emt
00:00:06]} g6 {[%clk 00:02:18]} {[%emt 00:00:02]} 21. Rfe1 {[%clk 00:01:39]}
{[%emt 00:00:09]} Re7 {[%clk 00:02:16]} {[%emt 00:00:04]} 22. Qa4 {[%clk
00:01:37]} {[%emt 00:00:04]} a5 {[%clk 00:02:13]} {[%emt 00:00:05]} 23. Qb3
{[%clk 00:01:33]} {[%emt 00:00:07]} Rfe8 {[%clk 00:02:11]} {[%emt 00:00:03]} 24.
Qc3 {[%clk 00:01:21]} {[%emt 00:00:14]} f4 {[%clk 00:02:08]} {[%emt 00:00:05]}
25. Qc2 {[%clk 00:00:42]} {[%emt 00:00:41]} Kg7 {[%clk 00:02:00]} {[%emt
00:00:10]} 26. Rcd1 {[%clk 00:00:17]} {[%emt 00:00:27]} fxg3 {[%clk 00:01:59]}
{[%emt 00:00:03]} 27. fxg3 {[%clk 00:00:16]} {[%emt 00:00:04]} Bxg3 {[%clk
00:01:58]} {[%emt 00:00:02]} 28. Rf1 {[%clk 00:00:14]} {[%emt 00:00:04]} Qxh4
{[%clk 00:01:56]} {[%emt 00:00:04]} 29. Nf3 {[%clk 00:00:13]} {[%emt 00:00:02]}
Qh5 {[%clk 00:01:52]} {[%emt 00:00:06]} 30. Be2 {[%clk 00:00:12]} {[%emt
00:00:03]} Rxe3 {[%clk 00:01:44]} {[%emt 00:00:11]} 31. Ne5 {[%clk 00:00:10]}
{[%emt 00:00:04]} Qh2# {[%emt 00:00:03]} 0-1

[Event "MČR v bleskovém šachu družstev 2019"]
[Site "Teplice, Czech Republic"]
[Date "2019.09.14"]
[Round "2.20"]
[White "Routner, Jakub"]
[Black "Sedmihradsky, Tomas"]
[Result "0-1"]
[TimeControl "3 mim. + 2 s"]
[WhiteFideId "322245"]
[BlackFideId "23709936"]
[WhiteElo "2138"]
[BlackElo "1452"]

1. e4 {[%clk 00:03:01]} {[%emt 00:00:03]} e6 {[%clk 00:03:03]} {[%emt
00:00:02]} 2. d4 {[%clk 00:03:00]} {[%emt 00:00:03]} d5 {[%clk 00:03:04]} 3. e5
{[%clk 00:03:01]} c5 {[%clk 00:03:05]} {[%emt 00:00:02]} 4. Nf3 {[%clk
00:03:02]} {[%emt 00:00:01]} Nc6 {[%clk 00:03:06]} {[%emt 00:00:01]} 5. Bd3
{[%clk 00:03:04]} cxd4 {[%clk 00:03:01]} {[%emt 00:00:08]} 6. O-O {[%clk
00:03:04]} {[%emt 00:00:02]} f6 {[%clk 00:02:55]} {[%emt 00:00:08]} 7. Bf4
{[%clk 00:02:53]} {[%emt 00:00:12]} g5 {[%clk 00:02:46]} {[%emt 00:00:11]} 8.
Bg3 {[%clk 00:02:53]} {[%emt 00:00:02]} f5 {[%clk 00:02:43]} {[%emt 00:00:05]}
9. h4 {[%clk 00:02:38]} {[%emt 00:00:17]} f4 {[%clk 00:02:36]} {[%emt
00:00:09]} 10. Bh2 {[%clk 00:02:38]} {[%emt 00:00:02]} gxh4 {[%clk 00:02:37]}
{[%emt 00:00:01]} 11. Bxf4 {[%clk 00:02:38]} {[%emt 00:00:02]} Bg7 {[%clk
00:02:23]} {[%emt 00:00:15]} 12. Nbd2 {[%clk 00:02:20]} {[%emt 00:00:21]} Qc7
{[%clk 00:02:18]} {[%emt 00:00:07]} 13. Re1 {[%clk 00:02:21]} {[%emt 00:00:02]}
Nge7 {[%clk 00:02:15]} {[%emt 00:00:04]} 14. Nxh4 {[%clk 00:02:21]} {[%emt
00:00:02]} Bd7 {[%clk 00:01:43]} {[%emt 00:00:34]} 0-1

[Event "MČR v bleskovém šachu družstev 2019"]
[Site "Teplice, Czech Republic"]
[Date "2019.09.14"]
[Round "2.21"]
[White "Trepka, Jan"]
[Black "Babicka, Michal"]
[Result "0-1"]
[TimeControl "3 mim. + 2 s"]
[WhiteFideId "322814"]
[WhiteElo "2186"]
[BlackElo "2076"]

1. d4 {[%clk 00:03:02]} {[%emt 00:00:01]} Nf6 {[%clk 00:03:03]} {[%emt
00:00:02]} 2. c4 {[%clk 00:03:03]} g6 {[%clk 00:03:04]} 3. Nc3 {[%clk
00:03:04]} {[%emt 00:00:02]} Bg7 {[%clk 00:03:05]} 4. e4 {[%clk 00:03:05]}
{[%emt 00:00:02]} d6 {[%clk 00:03:06]} {[%emt 00:00:02]} 5. f4 {[%clk
00:03:05]} O-O {[%clk 00:03:04]} {[%emt 00:00:04]} 6. Nf3 {[%clk 00:03:06]}
{[%emt 00:00:03]} c5 {[%clk 00:03:05]} 7. dxc5 {[%clk 00:03:06]} {[%emt
00:00:02]} dxc5 {[%clk 00:03:01]} {[%emt 00:00:06]} 8. Qxd8 {[%clk 00:03:00]}
{[%emt 00:00:07]} Rxd8 {[%clk 00:03:01]} {[%emt 00:00:01]} 9. e5 {[%clk
00:02:59]} {[%emt 00:00:05]} Ne8 {[%clk 00:02:48]} {[%emt 00:00:15]} 10. Be3
{[%clk 00:02:56]} {[%emt 00:00:06]} b6 {[%clk 00:02:47]} {[%emt 00:00:01]} 11.
Be2 {[%clk 00:02:50]} {[%emt 00:00:08]} e6 {[%clk 00:02:33]} {[%emt 00:00:17]}
12. Kf2 {[%clk 00:02:47]} {[%emt 00:00:04]} Bb7 {[%clk 00:02:33]} {[%emt
00:00:02]} 13. Rhd1 {[%clk 00:02:40]} {[%emt 00:00:10]} Nc6 {[%clk 00:02:34]}
14. Ng5 {[%clk 00:02:21]} {[%emt 00:00:21]} Nd4 {[%clk 00:02:23]} {[%emt
00:00:13]} 15. Bxd4 {[%clk 00:01:56]} {[%emt 00:00:28]} cxd4 {[%clk 00:02:24]}
16. Nb5 {[%clk 00:01:41]} {[%emt 00:00:17]} h6 {[%clk 00:02:15]} {[%emt
00:00:11]} 17. Nf3 {[%clk 00:01:15]} {[%emt 00:00:28]} f6 {[%clk 00:02:05]}
{[%emt 00:00:11]} 18. Nbxd4 {[%clk 00:00:41]} {[%emt 00:00:36]} fxe5 {[%clk
00:02:01]} {[%emt 00:00:06]} 19. Nxe5 {[%clk 00:00:34]} {[%emt 00:00:10]} Nc7
{[%clk 00:01:57]} {[%emt 00:00:05]} 20. Bf3 {[%clk 00:00:32]} {[%emt 00:00:04]}
Bxf3 {[%clk 00:01:38]} {[%emt 00:00:21]} 21. Ndxf3 {[%clk 00:00:33]} g5 {[%clk
00:01:32]} {[%emt 00:00:08]} 22. g3 {[%clk 00:00:28]} {[%emt 00:00:07]} gxf4
{[%emt 00:00:06]} 23. gxf4 Na6 {[%clk 00:01:16]} {[%emt 00:00:13]} 24. a3
{[%clk 00:00:21]} {[%emt 00:00:12]} Nc5 {[%clk 00:01:13]} {[%emt 00:00:04]} 25.
Ke3 {[%clk 00:00:22]} a5 {[%clk 00:01:04]} {[%emt 00:00:13]} 26. Rab1 {[%clk
00:00:19]} {[%emt 00:00:05]} Na4 {[%clk 00:00:47]} {[%emt 00:00:18]} 27. b3
{[%clk 00:00:16]} {[%emt 00:00:05]} Nc5 {[%clk 00:00:41]} {[%emt 00:00:08]} 28.
Rxd8+ {[%clk 00:00:13]} {[%emt 00:00:05]} Rxd8 {[%clk 00:00:43]} {[%emt
00:00:01]} 29. b4 {[%clk 00:00:12]} {[%emt 00:00:03]} Na4 {[%clk 00:00:24]}
{[%emt 00:00:20]} 30. Rb3 {[%clk 00:00:11]} {[%emt 00:00:03]} Rd1 {[%clk
00:00:23]} {[%emt 00:00:04]} 31. Rd3 {[%clk 00:00:11]} {[%emt 00:00:02]} Ra1
{[%clk 00:00:22]} {[%emt 00:00:03]} 32. Nd4 {[%clk 00:00:10]} {[%emt 00:00:02]}
Nb2 {[%clk 00:00:19]} {[%emt 00:00:05]} 33. Rc3 {[%clk 00:00:10]} {[%emt
00:00:02]} Nd1+ {[%clk 00:00:20]} {[%emt 00:00:01]} 34. Kd3 {[%clk 00:00:11]}
Nxc3 {[%clk 00:00:21]} {[%emt 00:00:02]} 35. Kxc3 {[%clk 00:00:12]} Rxa3+
{[%clk 00:00:22]} {[%emt 00:00:01]} 36. Nb3 {[%clk 00:00:13]} {[%emt 00:00:02]}
a4 {[%clk 00:00:20]} {[%emt 00:00:03]} 0-1

[Event "MČR v bleskovém šachu družstev 2019"]
[Site "Teplice, Czech Republic"]
[Date "2019.09.14"]
[Round "2.22"]
[White "Mach, Petr"]
[Black "Ruzicka, Ales"]
[Result "1/2-1/2"]
[TimeControl "3 mim. + 2 s"]
[BlackFideId "325252"]
[WhiteElo "1961"]
[BlackElo "2102"]

1. Nf3 {[%clk 00:03:02]} {[%emt 00:00:01]} Nf6 {[%clk 00:03:03]} {[%emt
00:00:03]} 2. c4 {[%clk 00:03:03]} d6 {[%clk 00:03:04]} 3. d4 {[%clk 00:03:01]}
{[%emt 00:00:04]} g6 {[%clk 00:03:03]} {[%emt 00:00:03]} 4. Nc3 {[%clk
00:02:56]} {[%emt 00:00:07]} Bg7 {[%clk 00:03:04]} 5. g3 {[%clk 00:02:57]}
{[%emt 00:00:01]} O-O {[%clk 00:03:03]} {[%emt 00:00:04]} 6. Bg2 {[%clk
00:02:58]} Nbd7 {[%clk 00:03:04]} 7. O-O {[%clk 00:02:57]} {[%emt 00:00:03]}
Re8 {[%clk 00:03:03]} {[%emt 00:00:03]} 8. e4 {[%clk 00:02:52]} {[%emt
00:00:07]} e5 {[%clk 00:03:04]} {[%emt 00:00:01]} 9. h3 {[%clk 00:02:53]}
{[%emt 00:00:02]} exd4 {[%clk 00:03:00]} {[%emt 00:00:05]} 10. Nxd4 {[%clk
00:02:52]} {[%emt 00:00:02]} Ne5 {[%clk 00:03:00]} {[%emt 00:00:04]} 11. b3
{[%clk 00:02:48]} {[%emt 00:00:04]} Bd7 {[%clk 00:03:00]} {[%emt 00:00:03]} 12.
Be3 {[%clk 00:02:49]} Nc6 {[%clk 00:02:58]} {[%emt 00:00:05]} 13. Rc1 {[%clk
00:02:45]} {[%emt 00:00:06]} Nxd4 {[%clk 00:02:56]} {[%emt 00:00:04]} 14. Bxd4
{[%clk 00:02:45]} {[%emt 00:00:02]} Bc6 {[%clk 00:02:56]} {[%emt 00:00:02]} 15.
Re1 {[%clk 00:02:24]} {[%emt 00:00:23]} Nd7 {[%clk 00:02:46]} {[%emt 00:00:14]}
16. Bxg7 Kxg7 {[%clk 00:02:46]} 17. Qd4+ {[%clk 00:02:16]} {[%emt 00:00:03]}
Qf6 {[%clk 00:02:46]} {[%emt 00:00:04]} 18. Qxf6+ {[%clk 00:02:16]} {[%emt
00:00:03]} Nxf6 {[%clk 00:02:42]} {[%emt 00:00:06]} 19. Nd5 {[%clk 00:02:15]}
{[%emt 00:00:02]} Bxd5 {[%clk 00:02:32]} {[%emt 00:00:12]} 20. cxd5 {[%clk
00:02:01]} {[%emt 00:00:16]} Re7 {[%clk 00:02:24]} {[%emt 00:00:10]} 21. f4
{[%clk 00:01:23]} {[%emt 00:00:42]} Rae8 {[%clk 00:02:22]} {[%emt 00:00:02]} 22.
e5 {[%clk 00:01:24]} {[%emt 00:00:01]} dxe5 {[%clk 00:02:04]} {[%emt 00:00:20]}
23. fxe5 {[%clk 00:01:25]} Rxe5 {[%clk 00:02:03]} {[%emt 00:00:04]} 24. Rxe5
{[%clk 00:01:26]} Rxe5 {[%clk 00:02:04]} {[%emt 00:00:01]} 25. Rxc7 {[%clk
00:01:26]} Nxd5 {[%clk 00:01:57]} {[%emt 00:00:09]} 26. Rxb7 {[%clk 00:01:25]}
{[%emt 00:00:04]} Nc3 {[%clk 00:01:36]} {[%emt 00:00:21]} 27. Rxa7 {[%clk
00:01:10]} {[%emt 00:00:16]} Re1+ {[%clk 00:01:32]} {[%emt 00:00:06]} 28. Kh2
{[%clk 00:01:10]} {[%emt 00:00:03]} Re2 {[%clk 00:01:33]} {[%emt 00:00:01]} 29.
a4 {[%clk 00:00:55]} {[%emt 00:00:17]} Rb2 {[%clk 00:01:33]} {[%emt 00:00:02]}
30. a5 {[%clk 00:00:43]} {[%emt 00:00:14]} Nd1 {[%clk 00:01:24]} {[%emt
00:00:11]} 31. Kg1 {[%clk 00:00:37]} {[%emt 00:00:07]} Ne3 {[%clk 00:01:22]}
{[%emt 00:00:05]} 32. Bf3 {[%clk 00:00:29]} {[%emt 00:00:10]} Rxb3 {[%clk
00:01:20]} {[%emt 00:00:04]} 33. Kf2 {[%clk 00:00:28]} {[%emt 00:00:03]} Nf5
{[%clk 00:01:17]} {[%emt 00:00:05]} 34. Bd5 {[%clk 00:00:17]} {[%emt 00:00:12]}
Rb2+ {[%clk 00:01:12]} {[%emt 00:00:08]} 35. Kf3 {[%clk 00:00:17]} {[%emt
00:00:02]} Nd4+ {[%clk 00:00:59]} {[%emt 00:00:15]} 36. Ke4 {[%clk 00:00:17]}
{[%emt 00:00:01]} Nb5 {[%clk 00:00:57]} {[%emt 00:00:05]} 37. Rxf7+ {[%clk
00:00:15]} {[%emt 00:00:04]} Kh6 {[%clk 00:00:57]} {[%emt 00:00:02]} 38. Rb7
{[%clk 00:00:06]} {[%emt 00:00:07]} Nd6+ {[%clk 00:00:58]} {[%emt 00:00:04]} 39.
Kd4 {[%clk 00:00:06]} {[%emt 00:00:03]} Nxb7 {[%clk 00:00:59]} {[%emt
00:00:01]} 40. a6 {[%clk 00:00:07]} Rb4+ {[%clk 00:00:30]} {[%emt 00:00:30]} 41.
Kc3 {[%clk 00:00:05]} {[%emt 00:00:04]} Rb6 {[%clk 00:00:24]} {[%emt 00:00:08]}
42. axb7 {[%clk 00:00:04]} {[%emt 00:00:03]} Kg5 {[%clk 00:00:23]} {[%emt
00:00:04]} 43. Bf3 {[%clk 00:00:04]} {[%emt 00:00:02]} Kf6 {[%clk 00:00:24]}
{[%emt 00:00:01]} 44. Kd4 {[%clk 00:00:04]} {[%emt 00:00:02]} h6 {[%clk
00:00:23]} {[%emt 00:00:03]} 45. Kc5 {[%clk 00:00:05]} Rb3 {[%clk 00:00:18]}
{[%emt 00:00:07]} 46. Kd6 {[%clk 00:00:04]} {[%emt 00:00:02]} g5 {[%clk
00:00:12]} {[%emt 00:00:08]} 47. Kc7 {[%clk 00:00:04]} {[%emt 00:00:02]} Rc3+
{[%clk 00:00:12]} {[%emt 00:00:02]} 48. Kd8 {[%clk 00:00:04]} {[%emt 00:00:02]}
Rb3 {[%clk 00:00:13]} {[%emt 00:00:02]} 49. Kc8 {[%clk 00:00:05]} Rc3+ {[%clk
00:00:14]} {[%emt 00:00:02]} 50. Kc7 {[%emt 00:00:05]} 1/2-1/2

[Event "MČR v bleskovém šachu družstev 2019"]
[Site "Teplice, Czech Republic"]
[Date "2019.09.14"]
[Round "2.24"]
[White "Popper, Tomas"]
[Black "Meszaros, Ludek"]
[Result "0-1"]
[TimeControl "3 mim. + 2 s"]
[BlackFideId "308153"]
[WhiteElo "2088"]
[BlackElo "2070"]

1. e4 {[%clk 00:03:01]} {[%emt 00:00:03]} e5 {[%clk 00:03:03]} {[%emt
00:00:01]} 2. Nf3 {[%clk 00:03:01]} {[%emt 00:00:01]} Nc6 {[%clk 00:03:05]} 3.
Bc4 {[%clk 00:03:00]} {[%emt 00:00:03]} Nf6 {[%clk 00:03:05]} {[%emt 00:00:02]}
4. d3 {[%clk 00:02:59]} {[%emt 00:00:04]} h6 {[%clk 00:03:07]} 5. Nc3 {[%clk
00:02:59]} {[%emt 00:00:01]} d6 {[%clk 00:03:08]} 6. h3 {[%clk 00:02:51]}
{[%emt 00:00:11]} g6 {[%clk 00:03:09]} 7. Be3 {[%clk 00:02:50]} {[%emt
00:00:03]} Bg7 {[%clk 00:03:10]} 8. Qd2 {[%clk 00:02:50]} {[%emt 00:00:02]} Qe7
{[%clk 00:03:10]} {[%emt 00:00:02]} 9. a3 {[%clk 00:02:28]} {[%emt 00:00:25]}
Be6 {[%clk 00:03:11]} 10. Nd5 {[%clk 00:02:19]} {[%emt 00:00:11]} Bxd5 {[%clk
00:03:07]} {[%emt 00:00:07]} 11. exd5 {[%clk 00:02:06]} {[%emt 00:00:15]} Nb8
{[%clk 00:03:07]} 12. Bb5+ {[%clk 00:02:07]} Nbd7 {[%clk 00:03:07]} {[%emt
00:00:04]} 13. O-O {[%clk 00:02:06]} {[%emt 00:00:03]} Nxd5 {[%clk 00:03:05]}
{[%emt 00:00:05]} 14. Rfe1 {[%clk 00:02:02]} {[%emt 00:00:06]} Nxe3 {[%clk
00:03:04]} {[%emt 00:00:02]} 15. Qxe3 {[%clk 00:02:01]} {[%emt 00:00:02]} O-O
{[%clk 00:03:03]} {[%emt 00:00:04]} 16. d4 {[%clk 00:01:59]} {[%emt 00:00:04]}
c6 {[%clk 00:02:59]} {[%emt 00:00:06]} 17. Bd3 {[%clk 00:01:50]} {[%emt
00:00:12]} f5 {[%clk 00:02:47]} {[%emt 00:00:14]} 18. dxe5 {[%clk 00:01:48]}
{[%emt 00:00:03]} dxe5 {[%clk 00:02:46]} {[%emt 00:00:03]} 19. Rad1 {[%clk
00:01:45]} {[%emt 00:00:05]} Kh7 {[%clk 00:02:44]} {[%emt 00:00:05]} 20. Bc4
{[%clk 00:01:29]} {[%emt 00:00:18]} Nb6 {[%clk 00:02:39]} {[%emt 00:00:07]} 21.
Bb3 {[%clk 00:01:26]} {[%emt 00:00:04]} Rfe8 {[%clk 00:02:30]} {[%emt
00:00:11]} 22. Nd4 {[%clk 00:00:58]} {[%emt 00:00:31]} Rad8 {[%clk 00:02:08]}
{[%emt 00:00:24]} 23. Ne6 {[%clk 00:00:57]} {[%emt 00:00:03]} Rxd1 {[%clk
00:01:57]} {[%emt 00:00:13]} 24. Rxd1 {[%clk 00:00:58]} Bf6 {[%clk 00:01:34]}
{[%emt 00:00:26]} 25. Nc5 {[%clk 00:00:51]} {[%emt 00:00:08]} f4 {[%clk
00:01:25]} {[%emt 00:00:12]} 26. Qc3 {[%clk 00:00:44]} {[%emt 00:00:08]} e4
{[%clk 00:01:19]} {[%emt 00:00:08]} 27. Qa5 {[%clk 00:00:43]} {[%emt 00:00:03]}
e3 {[%clk 00:01:11]} {[%emt 00:00:10]} 28. fxe3 {[%clk 00:00:28]} {[%emt
00:00:17]} fxe3 {[%clk 00:01:06]} {[%emt 00:00:06]} 29. Ne6 {[%clk 00:00:14]}
{[%emt 00:00:17]} Nd5 {[%clk 00:00:58]} {[%emt 00:00:10]} 30. Bxd5 {[%clk
00:00:13]} {[%emt 00:00:03]} cxd5 {[%clk 00:00:59]} 31. Qxd5 {[%clk 00:00:14]}
{[%emt 00:00:02]} Qxe6 {[%clk 00:00:59]} {[%emt 00:00:02]} 32. Qxb7+ {[%clk
00:00:10]} {[%emt 00:00:05]} Re7 {[%clk 00:00:59]} {[%emt 00:00:02]} 33. Qb8
{[%clk 00:00:06]} {[%emt 00:00:06]} e2 {[%clk 00:00:55]} {[%emt 00:00:06]} 34.
Re1 {[%clk 00:00:08]} Bd4+ {[%clk 00:00:52]} {[%emt 00:00:04]} 35. Kh1 {[%clk
00:00:07]} {[%emt 00:00:04]} Rf7 {[%clk 00:00:46]} {[%emt 00:00:08]} 36. Qb5
{[%clk 00:00:04]} {[%emt 00:00:05]} Qe3 {[%clk 00:00:33]} {[%emt 00:00:14]} 37.
Qxe2 {[%clk 00:00:04]} {[%emt 00:00:03]} Qxe2 {[%clk 00:00:30]} {[%emt
00:00:05]} 38. Rxe2 {[%clk 00:00:05]} Bxb2 {[%emt 00:00:05]} 39. a4 {[%clk
00:00:06]} Rc7 {[%clk 00:00:26]} 0-1

[Event "MČR v bleskovém šachu družstev 2019"]
[Site "Teplice, Czech Republic"]
[Date "2019.09.14"]
[Round "2.26"]
[White "Hacha, Ales"]
[Black "Cernousek, Lukas"]
[Result "0-1"]
[TimeControl "3 mim. + 2 s"]
[BlackTitle "IM"]
[BlackFideId "311707"]
[WhiteElo "2065"]
[BlackElo "2473"]

1. e4 {[%clk 00:03:02]} {[%emt 00:00:02]} e6 {[%clk 00:03:04]} 2. Nf3 {[%clk
00:03:02]} {[%emt 00:00:02]} d5 {[%clk 00:03:05]} 3. exd5 {[%clk 00:03:03]}
{[%emt 00:00:01]} Qxd5 {[%clk 00:03:05]} {[%emt 00:00:02]} 4. Be2 {[%clk
00:03:04]} {[%emt 00:00:02]} Nf6 {[%clk 00:03:06]} {[%emt 00:00:02]} 5. O-O
{[%clk 00:03:05]} c5 {[%clk 00:03:04]} {[%emt 00:00:04]} 6. c4 {[%clk
00:03:05]} {[%emt 00:00:03]} Qd8 {[%clk 00:03:00]} {[%emt 00:00:05]} 7. d4
{[%clk 00:03:06]} {[%emt 00:00:02]} Nc6 {[%clk 00:02:58]} {[%emt 00:00:04]} 8.
d5 {[%clk 00:03:06]} {[%emt 00:00:03]} exd5 {[%clk 00:02:59]} 9. cxd5 {[%clk
00:03:06]} {[%emt 00:00:01]} Qxd5 {[%clk 00:03:00]} {[%emt 00:00:01]} 10. Qxd5
{[%clk 00:03:07]} {[%emt 00:00:02]} Nxd5 {[%clk 00:03:01]} 11. Re1 {[%clk
00:03:06]} {[%emt 00:00:03]} Be7 {[%clk 00:03:00]} {[%emt 00:00:02]} 12. Bb5
{[%clk 00:02:56]} {[%emt 00:00:12]} Ndb4 {[%clk 00:02:59]} {[%emt 00:00:04]} 13.
Re2 {[%clk 00:02:34]} {[%emt 00:00:24]} a6 {[%clk 00:02:57]} {[%emt 00:00:04]}
14. Ba4 {[%clk 00:02:32]} {[%emt 00:00:04]} b5 {[%clk 00:02:57]} {[%emt
00:00:03]} 15. Bd1 {[%clk 00:01:55]} {[%emt 00:00:39]} Bg4 {[%clk 00:02:58]}
{[%emt 00:00:02]} 16. a3 {[%clk 00:01:53]} {[%emt 00:00:05]} Nd3 {[%clk
00:02:51]} {[%emt 00:00:07]} 17. Bg5 {[%clk 00:01:47]} {[%emt 00:00:07]} f6
{[%clk 00:02:37]} {[%emt 00:00:16]} 18. Be3 {[%clk 00:01:42]} {[%emt 00:00:06]}
Kf7 {[%clk 00:02:11]} {[%emt 00:00:29]} 19. Bc2 {[%clk 00:01:15]} {[%emt
00:00:29]} Rad8 {[%clk 00:01:45]} {[%emt 00:00:29]} 20. Nc3 {[%clk 00:01:14]}
{[%emt 00:00:03]} Bxf3 {[%clk 00:01:24]} {[%emt 00:00:22]} 21. gxf3 {[%clk
00:01:14]} {[%emt 00:00:02]} Nce5 {[%clk 00:01:24]} {[%emt 00:00:03]} 22. Kg2
{[%clk 00:01:15]} Nc4 {[%clk 00:01:23]} {[%emt 00:00:02]} 23. Bb3 {[%clk
00:01:10]} {[%emt 00:00:07]} Rd7 {[%clk 00:01:01]} {[%emt 00:00:24]} 24. Ne4
{[%clk 00:01:10]} {[%emt 00:00:02]} Kg6 {[%clk 00:00:55]} {[%emt 00:00:09]} 25.
Bxc4 {[%clk 00:01:09]} {[%emt 00:00:03]} bxc4 {[%clk 00:00:56]} 26. Rg1 {[%clk
00:01:07]} {[%emt 00:00:04]} Kf7 {[%clk 00:00:54]} {[%emt 00:00:03]} 27. Kh1
{[%clk 00:01:00]} {[%emt 00:00:10]} Rb8 {[%clk 00:00:54]} {[%emt 00:00:03]} 28.
Rc2 {[%clk 00:00:49]} {[%emt 00:00:12]} Rxb2 {[%clk 00:00:40]} {[%emt
00:00:16]} 29. Rxc4 {[%clk 00:00:50]} {[%emt 00:00:01]} Ne5 {[%clk 00:00:40]}
{[%emt 00:00:01]} 30. Ra4 {[%clk 00:00:36]} {[%emt 00:00:16]} Nxf3 {[%clk
00:00:40]} {[%emt 00:00:03]} 31. Rg3 {[%clk 00:00:33]} {[%emt 00:00:06]} Nh4
{[%clk 00:00:26]} {[%emt 00:00:16]} 32. h3 {[%clk 00:00:34]} Rd1+ {[%clk
00:00:26]} {[%emt 00:00:02]} 33. Kh2 {[%clk 00:00:35]} {[%emt 00:00:01]} Rbb1
{[%clk 00:00:27]} 34. Rg4 {[%clk 00:00:16]} {[%emt 00:00:22]} f5 {[%clk
00:00:11]} {[%emt 00:00:18]} 35. Ng5+ {[%clk 00:00:17]} Bxg5 {[%clk 00:00:12]}
36. Rxg5 {[%clk 00:00:18]} Nf3+ {[%emt 00:00:01]} 37. Kg3 Nxg5 {[%clk
00:00:13]} 38. Bxg5 {[%clk 00:00:19]} {[%emt 00:00:02]} Rd3+ {[%clk 00:00:13]}
{[%emt 00:00:03]} 39. Kf4 {[%clk 00:00:20]} {[%emt 00:00:01]} Rd4+ {[%clk
00:00:11]} {[%emt 00:00:04]} 40. Rxd4 {[%clk 00:00:21]} {[%emt 00:00:01]} cxd4
{[%clk 00:00:12]} 41. Kxf5 {[%clk 00:00:21]} Ra1 {[%clk 00:00:12]} {[%emt
00:00:02]} 42. Ke4 {[%clk 00:00:22]} {[%emt 00:00:02]} Rxa3 {[%clk 00:00:13]}
{[%emt 00:00:01]} 43. Kxd4 {[%clk 00:00:22]} {[%emt 00:00:02]} Rxh3 {[%clk
00:00:12]} {[%emt 00:00:02]} 44. Be3 {[%clk 00:00:23]} Rxe3 45. Kxe3 {[%clk
00:00:24]} h5 {[%clk 00:00:12]} {[%emt 00:00:02]} 0-1